lending/lending_fUSD_20240130
["ID","MTS","AMOUNT","RATE_DAILY","PERIOD"]
[312997198,1706573445566,-187.5,0.00046575,120]
[312997199,1706573445577,-2809.48376728,0.00046584,5]
[312997200,1706573445586,-7810.0,0.000466,2]
[312997201,1706573445596,-151.19045389,0.00046613,31]
[312997202,1706573445606,-1073.7,0.00046849,120]
[312997203,1706573445616,-956.06993482,0.0004689,13]
[312997204,1706573445626,-532.15993653,0.00047,30]
[312997205,1706573445635,-1454.05,0.00047008,2]
[312997206,1706573445646,-1814.28,0.00047458,5]
[312997207,1706573445655,-450.0,0.000475,5]
[312997208,1706573445665,-644.14,0.00047572,15]
[312997209,1706573445674,-150.0,0.00047585,2]
[312997210,1706573445685,-208.0,0.00047625,10]
[312997211,1706573445695,-5000.0,0.00047787,4]
[312997212,1706573445704,-523.0,0.0004789,2]
[312997213,1706573445713,-381.0,0.0004789,2]
[312997214,1706573445723,-2000.0,0.000479,4]
[312997215,1706573445732,-6308.38764174,0.000479,2]
[312997216,1706573445754,-1501.61235826,0.000479,2]
[312997217,1706573445763,-151.19045389,0.0004793,36]
[312997218,1706573445772,-808.83845917,0.00047997,2]
[312997219,1706573445782,-151.013,0.00047998,57]
[312997220,1706573445792,-800.0,0.00048,4]
[312997221,1706573445801,-500000.0,0.00048,14]
[312997222,1706573445811,-300.0,0.00048,30]
[312997223,1706573445821,-1200.0,0.00048,49]
[312997224,1706573445831,-151.013,0.00048098,56]
[312997225,1706573445840,-2809.48376728,0.00048163,5]
[312997226,1706573445849,-151.013,0.00048198,56]
[312997227,1706573445859,-208.0,0.00048277,10]
[312997228,1706573445868,-1508.93149553,0.00048295,120]
[312997229,1706573445878,-151.013,0.00048298,56]
[312997230,1706573445889,-151.0,0.00048373,2]
[312997231,1706573445898,-250.49088,0.00048373,2]
[312997232,1706573445908,-151.013,0.00048398,57]
[312997233,1706573445917,-2937.56396032,0.00048414,24]
[312997234,1706573445927,-151.013,0.00048498,56]
[312997235,1706573445939,-244.75156499,0.000485,2]
[312997236,1706573445950,-1508.93149553,0.00048592,120]
[312997237,1706573445960,-151.013,0.00048598,57]
[312997238,1706573445971,-150.0,0.00048666,2]
[312997239,1706573445981,-151.013,0.00048698,58]
[312997240,1706573445991,-151.013,0.00048798,56]
[312997241,1706573446001,-1351.0,0.0004889,2]
[312997242,1706573446010,-558.0,0.0004889,2]
[312997243,1706573446022,-151.013,0.00048898,56]
[312997244,1706573446033,-114071.02336506,0.000489,3]
[312997245,1706573446043,-1508.93149553,0.00048921,120]
[312997246,1706573446053,-208.0,0.00048928,10]
[312997247,1706573446062,-5000.0,0.0004898,7]
[312997248,1706573446072,-948.0,0.00048986,2]
[312997249,1706573446082,-663.478,0.00048986,2]
[312997250,1706573446091,-528.0,0.00048986,2]
[312997251,1706573446100,-1233.0,0.00048986,2]
[312997252,1706573446109,-324.442,0.00048986,2]
[312997253,1706573446120,-1253.0,0.00048986,2]
[312997254,1706573446129,-704.0,0.00048986,2]
[312997255,1706573446138,-594.0,0.00048986,2]
[312997256,1706573446148,-309.272,0.00048986,2]
[312997257,1706573446157,-552.706,0.00048986,2]
[312997258,1706573446167,-1000.0,0.00048986,2]
[312997259,1706573446177,-2055.413,0.00048986,2]
[312997260,1706573446189,-150.0,0.00048986,2]
[312997261,1706573446198,-1138.0,0.00048986,2]
[312997262,1706573446208,-320.0,0.00048986,2]
[312997263,1706573446218,-860.0,0.00048986,2]
[312997264,1706573446227,-172.87046736,0.00048987,30]
[312997265,1706573446237,-151.013,0.00048998,56]
[312997266,1706573446247,-174127.5019177,0.00049,4]
[312997267,1706573446259,-808.75030777,0.00049,4]
[312997268,1706573446270,-741.27723955,0.00049,4]
[312997269,1706573446282,-420.8888349,0.00049,4]
[312997270,1706573447000,-2501.32059009,0.00021838,2]
[312997271,1706573447012,-1295.1426,0.00021838,2]
[312997272,1706573447024,-558.04680991,0.00021838,2]
[312997273,1706573447034,-22395.00259949,0.00049,4]
[312997274,1706573447048,-8023.79020288,0.00049,4]
[312997275,1706573447058,-1064.94595654,0.00049,50]
[312997276,1706573447068,-1374.68878523,0.00049,30]
[312997277,1706573447077,-1341.0,0.0004906,2]
[312997278,1706573447088,-150.0,0.00049068,30]
[312997279,1706573447098,-150.0,0.00049068,30]
[312997280,1706573447108,-151.57872595,0.00049068,30]
[312997281,1706573447117,-150.0,0.00049068,30]
[312997282,1706573447126,-150.0,0.00049068,30]
[312997283,1706573447137,-150.0,0.00049068,30]
[312997284,1706573447147,-150.0,0.00049068,30]
[312997285,1706573447156,-150.0,0.00049068,30]
[312997286,1706573447166,-150.0,0.00049068,30]
[312997287,1706573447176,-150.0,0.00049068,30]
[312997288,1706573447189,-151.79068332,0.00049068,30]
[312997289,1706573447198,-150.0,0.00049068,30]
[312997290,1706573447208,-150.0,0.00049068,30]
[312997291,1706573447219,-2275.788,0.00049079,2]
[312997292,1706573447228,-550.107,0.00049079,2]
[312997293,1706573447238,-1010.88,0.00049079,2]
[312997294,1706573447293,-151.013,0.00049098,58]
[312997295,1706573447303,-5446.46652624,0.00049111,10]
[312997296,1706573447312,-150.0,0.00049145,30]
[312997297,1706573447322,-1508.93149553,0.00049161,120]
[312997298,1706573447331,-302.0,0.00049186,4]
[312997299,1706573447341,-151.013,0.00049198,56]
[312997300,1706573447350,-150.0,0.00049222,30]
[312997301,1706573447359,-151.19045389,0.00049248,41]
[312997302,1706573447368,-150.0,0.0004927,30]
[312997303,1706573447378,-1454.05,0.00049272,2]
[312997304,1706573447387,-151.013,0.00049298,59]
[312997305,1706573447396,-150.0,0.00049298,30]
[312997306,1706573447407,-375.0,0.00049315,120]
[312997307,1706573447417,-150.0,0.00049341,30]
[312997308,1706573447428,-150.0,0.00049371,30]
[312997309,1706573447439,-150.0,0.00049375,30]
[312997310,1706573447449,-151.013,0.00049398,59]
[312997311,1706573447459,-150.0,0.00049409,30]
[312997312,1706573447468,-150.0,0.00049452,30]
[312997313,1706573447477,-150.0,0.00049472,30]
[312997314,1706573447486,-151.013,0.00049498,59]
[312997315,1706573447495,-1508.93149553,0.00049521,120]
[312997316,1706573447505,-150.0,0.00049529,30]
[312997317,1706573447516,-150.0,0.00049564,30]
[312997318,1706573447526,-208.0,0.00049579,11]
[312997319,1706573447535,-151.013,0.00049598,59]
[312997320,1706573447544,-153.35,0.000496,6]
[312997321,1706573447553,-153.35,0.000496,6]
[312997322,1706573447562,-1467.15,0.000496,6]
[312997323,1706573447571,-1467.15,0.000496,6]
[312997324,1706573447581,-1467.15,0.000496,6]
[312997325,1706573447591,-1467.15,0.000496,6]
[312997326,1706573447602,-1467.15,0.000496,6]
[312997327,1706573447614,-1467.15,0.000496,6]
[312997328,1706573447623,-1467.15,0.000496,6]
[312997329,1706573447634,-1467.15,0.000496,6]
[312997330,1706573447643,-5.74127889,0.000496,6]
[312997331,1706573447657,-1461.40872111,0.000496,6]
[312997332,1706573447668,-1467.15,0.000496,6]
[312997333,1706573447678,-1467.15,0.000496,6]
[312997334,1706573447690,-1467.15,0.000496,6]
[312997335,1706573447699,-1467.15,0.000496,6]
[312997336,1706573447708,-1467.15,0.000496,6]
[312997337,1706573447718,-1467.15,0.000496,6]
[312997338,1706573447727,-1467.15,0.000496,6]
[312997339,1706573447736,-1467.15,0.000496,6]
[312997340,1706573447745,-1467.15,0.000496,6]
[312997341,1706573447755,-1011.05698268,0.000496,6]
[312997342,1706573447778,-537.08765302,0.00021751,2]
[312997343,1706573447789,-2066.32884479,0.00021751,2]
[312997344,1706573447803,-456.49852586,0.00021751,2]
[312997346,1706573447814,-73.48332495,0.00021751,2]
[312997348,1706573447824,-342.63917794,0.000496,6]
[312997349,1706573448977,-631.89537959,0.00039987,2]
[312997350,1706573448987,-3197.13386433,0.00039988,2]
[312997351,1706573448997,-1000.0,0.00039988,4]
[312997352,1706573449007,-3333.4756247,0.00039988,4]
[312997353,1706573449016,-166.48,0.0003999,10]
[312997354,1706573449026,-17522.53609281,0.00039998,4]
[312997355,1706573449036,-4166.64,0.00046931,2]
[312997356,1706573449046,-113.45383938,0.000496,6]
[312997357,1706573449056,-1467.15,0.000496,6]
[312997358,1706573449065,-150.0,0.00049606,30]
[312997359,1706573449075,-1508.93149553,0.00049637,120]
[312997360,1706573449085,-1617.81,0.00049673,120]
[312997361,1706573449094,-150.0,0.00049674,30]
[312997362,1706573449104,-150.0,0.00049674,30]
[312997363,1706573449114,-150.0,0.00049674,30]
[312997364,1706573449123,-150.0,0.00049682,30]
[312997365,1706573449133,-151.013,0.00049698,57]
[312997366,1706573449143,-1968.68595765,0.000497,61]
[312997367,1706573449153,-2809.48376728,0.00049742,5]
[312997368,1706573449162,-150.0,0.00049748,2]
[312997369,1706573449172,-150.0,0.0004975,30]
[312997370,1706573449182,-150.0,0.0004975,30]
[312997371,1706573449193,-150.0,0.0004975,30]
[312997372,1706573449203,-150.0,0.00049759,30]
[312997373,1706573449212,-5000.0,0.00049787,4]
[312997374,1706573449221,-151.013,0.00049798,59]
[312997375,1706573449232,-540.10723113,0.000498,120]
[312997376,1706573449241,-150.0,0.00049836,30]
[312997377,1706573449251,-150.0,0.00049876,30]
[312997378,1706573449261,-151.013,0.00049898,57]
[312997379,1706573449271,-968.7079,0.00049899,2]
[312997380,1706573449281,-500.0,0.000499,2]
[312997381,1706573449290,-150.0,0.00049913,30]
[312997382,1706573449300,-150.0,0.00049977,30]
[312997383,1706573449310,-797.40835443,0.0004998,5]
[312997384,1706573449320,-455.86080897,0.0004998,5]
[312997385,1706573449330,-150.0,0.00049989,30]
[312997386,1706573449341,-808.83845917,0.00049997,2]
[312997387,1706573449351,-151.013,0.00049998,59]
[312997388,1706573449360,-150.0,0.00049999,9]
[312997389,1706573449370,-150.0,0.00049999,9]
[312997390,1706573449379,-1081.11076799,0.0005,2]
[312997391,1706573449389,-2803.86892119,0.0005,10]
[312997392,1706573449430,-570.32545003,0.0005,4]
[312997393,1706573449442,-7864.35272421,0.0005,4]
[312997394,1706573449452,-28928.88093057,0.0005,30]
[312997395,1706573449461,-359.89930562,0.0005,120]
[312997396,1706573449471,-526.50470538,0.0005,120]
[312997397,1706573449480,-500.0,0.0005,6]
[312997398,1706573449491,-2959.61158092,0.0005,4]
[312997399,1706573449500,-201305.22388038,0.0005,60]
[312997400,1706573449510,-173.95567052,0.0005,90]
[312997401,1706573449520,-1520.537964,0.0005,30]
[312997402,1706573449529,-318.70092462,0.0005,30]
[312997403,1706573449538,-581.10602505,0.0005,30]
[312997404,1706573449547,-18933.85621322,0.0005,20]
[312997405,1706573449557,-249.80811335,0.0005,4]
[312997406,1706573449566,-1823.0,0.0005,60]
[312997407,1706573449575,-600.0,0.0005,51]
[312997408,1706573449587,-22164.0,0.0005,14]
[312997409,1706573449598,-433.0,0.0005,30]
[312997410,1706573449608,-300.0,0.0005,30]
[312997411,1706573449618,-4402.0,0.0005,30]
[312997412,1706573449627,-604.0,0.00050013,7]
[312997413,1706573449637,-150.0,0.00050059,30]
[312997414,1706573449646,-150.0,0.00050066,30]
[312997415,1706573449655,-150.0,0.00050078,30]
[312997416,1706573449664,-150.0,0.0005009,30]
[312997417,1706573449674,-151.013,0.00050098,57]
[312997418,1706573449683,-1000.0,0.000501,2]
[312997419,1706573449693,-1508.93149553,0.00050128,120]
[312997420,1706573449702,-150.0,0.00050143,30]
[312997421,1706573449712,-151.013,0.00050198,57]
[312997422,1706573449721,-1889.0,0.000502,7]
[312997423,1706573449732,-150.0,0.0005022,30]
[312997424,1706573449742,-208.0,0.0005023,20]
[312997425,1706573449751,-150.0,0.0005028,30]
[312997426,1706573449760,-150.0,0.0005028,30]
[312997427,1706573449770,-150.0,0.0005028,30]
[312997428,1706573449779,-150.0,0.00050297,30]
[312997429,1706573449788,-151.013,0.00050298,58]
[312997430,1706573449797,-151.013,0.00050298,58]
[312997431,1706573449807,-150.0,0.00050373,30]
[312997432,1706573449816,-1508.93149553,0.00050404,120]
[312997433,1706573449825,-150.0,0.00050431,30]
[312997434,1706573449834,-150.0,0.00050431,30]
[312997435,1706573449843,-150.0,0.00050431,30]
[312997436,1706573449853,-150.0,0.0005045,30]
[312997437,1706573449862,-150.0,0.00050481,30]
[312997438,1706573449871,-151.013,0.00050498,58]
[312997439,1706573449880,-150.0,0.00050527,30]
[312997440,1706573449889,-1508.93149553,0.0005055,120]
[312997441,1706573449898,-150.0,0.00050555,30]
[312997442,1706573449908,-1341.0,0.0005056,4]
[312997443,1706573449917,-151.19045389,0.00050565,46]
[312997444,1706573449926,-150.0,0.00050582,30]
[312997445,1706573449936,-151.013,0.00050598,59]
[312997446,1706573449946,-10927.4466233,0.000506,31]
[312997447,1706573449957,-150.0,0.00050604,30]
[312997448,1706573449967,-150.5,0.0005066,120]
[312997449,1706573449978,-293.73,0.0005067,120]
[312997450,1706573449990,-523.0,0.0005067,120]
[312997451,1706573450001,-343.0,0.0005067,120]
[312997452,1706573450011,-150.5,0.0005067,120]
[312997453,1706573450021,-150.5,0.0005068,120]
[312997454,1706573450033,-166.6,0.0005068,120]
[312997455,1706573450044,-523.0,0.0005068,120]
[312997456,1706573450054,-343.0,0.0005068,120]
[312997457,1706573450064,-150.5,0.0005068,120]
[312997458,1706573450074,-150.0,0.00050681,30]
[312997459,1706573450084,-150.0,0.00050683,30]
[312997460,1706573450095,-150.5,0.0005069,120]
[312997461,1706573450105,-150.5,0.0005069,120]
[312997462,1706573450116,-523.0,0.0005069,120]
[312997463,1706573450125,-343.0,0.0005069,120]
[312997464,1706573450135,-151.013,0.00050698,60]
[312997465,1706573450144,-201.756377,0.000507,30]
[312997466,1706573450154,-1508.93149553,0.00050718,120]
[312997467,1706573450164,-150.0,0.00050757,30]
[312997468,1706573450174,-150.0,0.00050772,30]
[312997469,1706573450184,-151.013,0.00050798,60]
[312997470,1706573450194,-150.0,0.00050829,2]
[312997471,1706573450204,-150.0,0.00050834,30]
[312997472,1706573450214,-11699.87,0.00050849,3]
[312997473,1706573450224,-1591.54431001,0.0005088,120]
[312997474,1706573450234,-1389.57599553,0.00050881,2]
[312997475,1706573450245,-208.0,0.00050882,20]
[312997476,1706573450255,-210.01525055,0.00050883,2]
[312997477,1706573450264,-150.0,0.00050885,30]
[312997478,1706573450274,-150.0,0.00050885,30]
[312997479,1706573450283,-150.0,0.00050885,30]
[312997480,1706573450292,-956.06993482,0.00050888,14]
[312997481,1706573450302,-728.51083504,0.00050888,48]
[312997482,1706573450312,-1348.0,0.0005089,2]
[312997483,1706573450321,-983.0,0.0005089,2]
[312997484,1706573450330,-151.013,0.00050898,60]
[312997485,1706573450340,-1000.0,0.000509,7]
[312997486,1706573450350,-150.0,0.00050911,30]
[312997487,1706573450360,-470.2062186,0.00050952,3]
[312997488,1706573450369,-470.2062186,0.00050954,3]
[312997489,1706573450379,-19910.09803071,0.00050955,2]
[312997490,1706573450389,-170253.10285212,0.00050955,3]
[312997491,1706573450399,-523.0,0.00050957,120]
[312997492,1706573450408,-343.0,0.00050957,120]
[312997493,1706573450418,-52242.41803486,0.00050959,3]
[312997494,1706573450428,-170253.10285212,0.0005096,3]
[312997495,1706573450438,-30446.23841039,0.0005096,3]
[312997496,1706573450448,-470.2062186,0.00050965,3]
[312997497,1706573450457,-2937.56396032,0.00050965,27]
[312997498,1706573450467,-7107.53630412,0.00050965,3]
[312997499,1706573450477,-52242.41803486,0.00050966,3]
[312997500,1706573450487,-523.0,0.00050967,120]
[312997501,1706573450498,-343.0,0.00050967,120]
[312997502,1706573450507,-7107.53630412,0.00050969,3]
[312997503,1706573450517,-265.64,0.0005097,120]
[312997504,1706573450527,-30446.23841039,0.00050976,3]
[312997505,1706573450536,-52242.41803486,0.00050976,3]
[312997506,1706573450546,-7107.53630412,0.00050977,3]
[312997507,1706573450555,-523.0,0.00050977,120]
[312997508,1706573450565,-343.0,0.00050977,120]
[312997509,1706573450575,-808.83845917,0.00050978,2]
[312997510,1706573450585,-7107.53630412,0.00050978,3]
[312997511,1706573450594,-157716.70477417,0.0005098,3]
[312997512,1706573450612,-42002.42162512,0.0005098,3]
[312997513,1706573484939,-155.30994888,0.00022,2]
[312997514,1706573703794,900.39866003,0.0003129,120]
[312997515,1706573842167,177.22459552,0.00022459,2]
[312997516,1706573874170,2975.1026,0.00022462,2]
[312997517,1706574105449,206.88634745,0.000225,2]
[312997518,1706574157464,177.22459551,0.00022415,2]
[312997520,1706574348279,2975.1026,0.00022413,2]
[312997521,1706574350717,2481.05828638,0.000225,2]
[312997522,1706574354317,420.86964603,0.000225,2]
[312997523,1706574366697,2481.05828638,0.00021892,2]
[312997524,1706574371465,3197.13386433,0.000225,2]
[312997525,1706574371618,4708.86041879,0.000225,2]
[312997526,1706574374322,420.86964603,0.00021666,2]
[312997527,1706574384699,2481.05828638,0.00021892,2]
[312997528,1706574386978,1374.42899066,0.000225,2]
[312997529,1706574387469,3197.13386433,0.00021666,2]
[312997530,1706574396312,420.86964603,0.00021666,2]
[312997531,1706574402701,1775.21463865,0.00021892,2]
[312997532,1706574405477,3197.13386433,0.00021666,2]
[312997533,1706574416330,420.86964603,0.00021666,2]
[312997534,1706574425586,3197.13386433,0.00021666,2]
[312997535,1706574436335,215.61284359,0.00021666,2]
[312997536,1706574441486,3197.13386433,0.00021666,2]
[312997537,1706574457577,3197.13386433,0.00021666,2]
[312997538,1706574461442,177.22459551,0.00022469,2]
[312997539,1706574471503,3197.13386433,0.00021666,2]
[312997540,1706574491505,3197.13386433,0.00021666,2]
[312997541,1706574513498,3197.13386433,0.00021666,2]
[312997542,1706574529503,491.73872213,0.00021666,2]
[312997547,1706574631800,-530.26541467,0.00022562,2]
[312997548,1706574631814,-469.73458533,0.00022562,2]
[312997549,1706574631824,-1333.18883171,0.00022563,2]
[312997550,1706574631837,-41.24015895,0.00022563,2]
[312997551,1706574631850,-178.98331502,0.00022569,2]
[312997552,1706574631859,-266.47788631,0.00022569,2]
[312997553,1706574631869,-191.06666822,0.0002257,2]
[312997554,1706574631878,-2944.92489564,0.00022571,2]
[312997555,1706574631913,-6633.43544199,0.00022571,2]
[312997556,1706574631966,-323.26186872,0.00022571,2]
[312997557,1706574631978,-280.378098,0.00022571,2]
[312997590,1706574637850,-16038.03651772,0.00022571,2]
[312997591,1706574637906,-1076.31462604,0.00022571,2]
[312997592,1706574637919,-761.89216963,0.00022571,2]
[312997593,1706574637933,-365.80397817,0.00022571,2]
[312997594,1706574638611,-5739.56200409,0.00022571,2]
[312997595,1706574638622,-933.6074,0.00022699,2]
[312997596,1706574638631,-23598.84134043,0.00022699,2]
[312997597,1706574638645,-15739.70165957,0.00022699,2]
[312997598,1706574638657,-206.3669,0.00022699,2]
[312997599,1706574638670,-500.0,0.00022699,2]
[312997600,1706574638681,-2500.0,0.00022699,2]
[312997601,1706574638692,-239.01748374,0.00022699,2]
[312997602,1706574638703,-1000.0,0.00022799,2]
[312997603,1706574638714,-245000.0,0.00022799,2]
[312997604,1706574638724,-100000.0,0.00022799,2]
[312997605,1706574638735,-159.34498917,0.000238,2]
[312997606,1706574638745,-159.34498917,0.000239,2]
[312997607,1706574638755,-499.99,0.000239,2]
[312997608,1706574638766,-201.49838389,0.00024,2]
[312997609,1706574638777,-4957.45658556,0.00024999,2]
[312997610,1706574638786,-326.93527378,0.00025,2]
[312997612,1706574638796,-2251.0618184,0.00026172,2]
[312997614,1706574638805,-2251.06181841,0.00026172,2]
[312997616,1706574638815,-200.0,0.00026461,2]
[312997618,1706574638824,-23900.0,0.00026689,2]
[312997621,1706574638834,-239.0174837,0.00026942,3]
[312997623,1706574638843,-152.46,0.00027,2]
[312997625,1706574638853,-178.72,0.00027397,2]
[312997627,1706574638863,-178.72,0.00028767,2]
[312997629,1706574638872,-155.41484029,0.00028998,2]
[312997631,1706574638882,-1043.00595454,0.00028999,2]
[312997633,1706574638891,-10728.73822821,0.00029,2]
[312997635,1706574638901,-159.34498913,0.0002952,4]
[312997637,1706574638910,-159.34498913,0.000296,4]
[312997639,1706574638919,-155.0,0.0003,2]
[312997640,1706574638929,-178.72,0.00030137,2]
[312997641,1706574638939,-727.02,0.00030881,2]
[312997642,1706574638949,-239.0174837,0.00031185,5]
[312997643,1706574638958,-1580.74718623,0.0003129,4]
[312997644,1706574638967,-500.0,0.0003129,2]
[312997646,1706574638977,-1967.58824804,0.0003129,2]
[312997647,1706574638987,-200.0,0.0003129,2]
[312997649,1706574638996,-250.0,0.00031321,2]
[312997650,1706574639006,-294.75,0.00031422,2]
[312997652,1706574639016,-250.0,0.00031437,2]
[312997654,1706574639025,-771.97,0.00031459,2]
[312997656,1706574639035,-1221.95,0.00031482,2]
[312997657,1706574639045,-178.72,0.00031507,2]
[312997659,1706574639054,-500.0,0.00031513,2]
[312997661,1706574639064,-8973.55,0.00031515,2]
[312997662,1706574639073,-250.0,0.00031542,2]
[312997664,1706574639083,-1852.42,0.00031558,2]
[312997665,1706574639092,-1007.72,0.00031571,2]
[312997666,1706574639101,-200.0,0.00031654,2]
[312997667,1706574639110,-8131.19,0.00032706,2]
[312997668,1706574639119,-500.0,0.00032776,2]
[312997669,1706574639129,-178.72,0.00032877,2]
[312997670,1706574639141,-150.0,0.00032967,2]
[312997671,1706574639151,-201.09,0.00033011,2]
[312997672,1706574639160,-1221.95,0.00033057,2]
[312997673,1706574639169,-294.75,0.00033066,2]
[312997674,1706574639181,-727.02,0.00033145,2]
[312997675,1706574639191,-165.83,0.00033497,2]
[312997676,1706574639201,-9113.65302004,0.00033658,5]
[312997677,1706574639211,-2423.99513419,0.00033658,5]
[312997678,1706574639221,-255.37154765,0.00033658,2]
[312997679,1706574639231,-635.999751,0.00034,4]
[312997680,1706574639241,-180.0,0.00034528,2]
[312997681,1706574639251,-1221.95,0.00034631,2]
[312997682,1706574639261,-167.43,0.00034678,2]
[312997683,1706574639270,-294.75,0.0003471,2]
[312997684,1706574639280,-974.22,0.00034889,2]
[312997685,1706574639291,-5000.0,0.00035,7]
[312997686,1706574639301,-1794.11,0.00035,5]
[312997687,1706574639313,-159.34498913,0.0003524,7]
[312997688,1706574639322,-159.34498913,0.000353,7]
[312997689,1706574639332,-1000.0,0.00035373,2]
[312997690,1706574639341,-727.02,0.00035409,2]
[312997691,1706574639352,-239.0174837,0.00035428,7]
[312997692,1706574639361,-1123.79350695,0.00036,2]
[312997693,1706574639371,-880.58,0.000361,3]
[312997694,1706574639381,-880.58,0.000361,3]
[312997695,1706574639391,-880.58,0.000361,3]
[312997696,1706574639401,-880.58,0.000361,3]
[312997697,1706574639411,-880.58,0.000361,3]
[312997698,1706574639421,-880.58,0.000361,3]
[312997699,1706574639431,-880.58,0.000361,3]
[312997700,1706574639441,-880.58,0.000361,3]
[312997701,1706574639450,-880.58,0.000361,3]
[312997702,1706574639460,-880.58,0.000361,3]
[312997703,1706574639469,-880.58,0.000361,3]
[312997704,1706574639479,-880.58,0.000361,3]
[312997705,1706574639489,-880.58,0.000361,3]
[312997706,1706574639498,-880.58,0.000361,3]
[312997707,1706574639508,-880.58,0.000361,3]
[312997708,1706574639518,-880.58,0.000361,3]
[312997709,1706574639527,-880.58,0.000361,3]
[312997710,1706574639537,-880.58,0.000361,3]
[312997711,1706574639547,-880.58,0.000361,3]
[312997712,1706574639559,-880.58,0.000361,3]
[312997713,1706574639568,-1221.95,0.00036205,2]
[312997714,1706574639578,-294.75,0.00036353,2]
[312997715,1706574639588,-1123.79350691,0.00036783,2]
[312997716,1706574639597,-1123.79350691,0.00037566,2]
[312997717,1706574639607,-727.02,0.00037673,2]
[312997718,1706574639617,-1221.95,0.00037779,2]
[312997719,1706574639626,-215.0,0.000379,2]
[312997720,1706574639636,-294.75,0.00037997,2]
[312997721,1706574639646,-1123.79350691,0.00038349,2]
[312997722,1706574639656,-4495.03986899,0.000385,7]
[312997723,1706574639666,-1000.0,0.000386,2]
[312997724,1706574639675,-9234.31949776,0.000388,2]
[312997725,1706574639685,-9234.31949774,0.000388,2]
[312997726,1706574639695,-9234.31949774,0.000388,2]
[312997727,1706574639704,-9234.31949774,0.000388,2]
[312997728,1706574639714,-9234.31949774,0.000388,2]
[312997729,1706574639725,-9234.31949774,0.000388,2]
[312997730,1706574639736,-9234.31949774,0.000388,2]
[312997731,1706574639745,-9234.31949774,0.000388,2]
[312997732,1706574639755,-9234.31949774,0.000388,2]
[312997733,1706574639765,-9234.31949774,0.000388,2]
[312997734,1706574639774,-9234.31949774,0.000388,2]
[312997735,1706574639785,-282.60808243,0.0003898,2]
[312997736,1706574639795,-9234.31949774,0.00038999,2]
[312997737,1706574639805,-1431.73512433,0.00039,2]
[312997738,1706574639815,-621.60218478,0.00039,4]
[312997739,1706574639825,-978.30213314,0.00039,4]
[312997740,1706574639835,-1123.79350691,0.00039133,2]
[312997741,1706574639845,-214.0,0.00039389,2]
[312997742,1706574639855,-294.75,0.00039641,2]
[312997743,1706574639867,-239.0174837,0.00039671,9]
[312997744,1706574639878,-1000.0,0.00039795,2]
[312997745,1706574639888,-350.09017722,0.000399,4]
[312997746,1706574639898,-1123.79350691,0.00039916,5]
[312997747,1706574639907,-727.02,0.00039937,2]
[312997748,1706574639917,-155.63396038,0.00039987,4]
[312997749,1706574639928,-580.85669802,0.00039987,4]
[312997750,1706574639938,-2274.86979912,0.0004,4]
[312997751,1706574639948,-155.0,0.0004,2]
[312997752,1706574639959,-2684.57209746,0.0004,4]
[312997753,1706574639969,-54392.52758537,0.0004,4]
[312997754,1706574639980,-1086.74219428,0.0004,4]
[312997755,1706574639992,-713.30733836,0.0004,30]
[312997756,1706574640001,-180.5079485,0.0004,2]
[312997757,1706574640011,-155.0,0.0004,4]
[312997758,1706574640022,-22076.99674252,0.0004,4]
[312997759,1706574640033,-172.27590147,0.0004,4]